[Event "Titled Tuesday Blitz March 08 Late 2022"]
[White "Martirosyan, Haik M."]
[Black "Praggnanandhaa R"]
[WhiteFideId "13306553"]
[BlackFideId "25059530"]
[WhiteElo "2735"]
[BlackElo "2599"]
[Result "1-0"]
[Round "10"]
[TimeControl "180+1"]
[Date "2022.03.08"]
[WhiteClock "0:00:05"]
[BlackClock "0:00:02"]

1. d4 {[%clk 0:03:00]}  Nf6 {[%clk 0:02:59]} 2. Bg5 {[%clk 0:03:00]}  g6 {[%clk 0:02:53]} 3. Bxf6 {[%clk 0:02:59]}  exf6 {[%clk 0:02:54]} 4. e3 {[%clk 0:02:59]}  Bg7 {[%clk 0:02:55]} 5. g3 {[%clk 0:02:54]}  d5 {[%clk 0:02:51]} 6. Bg2 {[%clk 0:02:54]}  c6 {[%clk 0:02:52]} 7. Nd2 {[%clk 0:02:50]}  Be6 {[%clk 0:02:51]} 8. Ne2 {[%clk 0:02:50]}  f5 {[%clk 0:02:49]} 9. Nf4 {[%clk 0:02:49]}  Nd7 {[%clk 0:02:50]} 10. c4 {[%clk 0:02:43]}  dxc4 {[%clk 0:02:29]} 11. Nxe6 {[%clk 0:02:42]}  fxe6 {[%clk 0:02:30]} 12. Nxc4 {[%clk 0:02:42]}  O-O {[%clk 0:02:30]} 13. O-O {[%clk 0:02:40]}  Qe7 {[%clk 0:02:20]} 14. Rc1 {[%clk 0:02:34]}  Kh8 {[%clk 0:02:18]} 15. Qb3 {[%clk 0:02:30]}  Rab8 {[%clk 0:02:17]} 16. Rfd1 {[%clk 0:02:28]}  Nf6 {[%clk 0:02:11]} 17. Ne5 {[%clk 0:02:15]}  Nd7 {[%clk 0:02:01]} 18. Nd3 {[%clk 0:02:12]}  Rfd8 {[%clk 0:01:57]} 19. Nf4 {[%clk 0:02:08]}  Nf8 {[%clk 0:01:55]} 20. h4 {[%clk 0:02:06]}  e5 {[%clk 0:01:53]} 21. dxe5 {[%clk 0:02:05]}  Bxe5 {[%clk 0:01:54]} 22. Bf3 {[%clk 0:01:55]}  Kg7 {[%clk 0:01:30]} 23. Kg2 {[%clk 0:01:52]}  h6 {[%clk 0:01:30]} 24. Qc2 {[%clk 0:01:30]}  Qf6 {[%clk 0:00:50]} 25. b4 {[%clk 0:01:26]}  Ne6 {[%clk 0:00:43]} 26. Qc4 {[%clk 0:01:15]}  Bxf4 {[%clk 0:00:38]} 27. exf4 {[%clk 0:01:06]}  Nd4 {[%clk 0:00:37]} 28. Rd3 {[%clk 0:01:02]}  Rd6 {[%clk 0:00:36]} 29. Re1 {[%clk 0:00:44]}  Rbd8 {[%clk 0:00:35]} 30. Rde3 {[%clk 0:00:44]}  R6d7 {[%clk 0:00:32]} 31. Bd1 {[%clk 0:00:42]}  Qd6 {[%clk 0:00:28]} 32. Qc3 {[%clk 0:00:38]}  Qf6 {[%clk 0:00:27]} 33. Bb3 {[%clk 0:00:37]}  g5 {[%clk 0:00:19]} 34. fxg5 {[%clk 0:00:34]}  hxg5 {[%clk 0:00:20]} 35. hxg5 {[%clk 0:00:29]}  Qxg5 {[%clk 0:00:21]} 36. Qc5 {[%clk 0:00:24]}  Qf6 {[%clk 0:00:15]} 37. Be6 {[%clk 0:00:21]}  Re7 {[%clk 0:00:11]} 38. Bc4 {[%clk 0:00:18]}  Rxe3 {[%clk 0:00:08]} 39. Rxe3 {[%clk 0:00:19]}  Rd7 {[%clk 0:00:08]} 40. Re8 {[%clk 0:00:17]}  b6 {[%clk 0:00:07]} 41. Rg8+ {[%clk 0:00:13]}  Kh7 {[%clk 0:00:07]} 42. Qf8 {[%clk 0:00:12]}  Qxf8 {[%clk 0:00:07]} 43. Rxf8 {[%clk 0:00:13]}  Kg7 {[%clk 0:00:08]} 44. Rc8 {[%clk 0:00:12]}  Kf6 {[%clk 0:00:08]} 45. a4 {[%clk 0:00:12]}  Ke5 {[%clk 0:00:08]} 46. a5 {[%clk 0:00:11]}  b5 {[%clk 0:00:07]} 47. Bf1 {[%clk 0:00:09]}  Kd5 {[%clk 0:00:07]} 48. Bd3 {[%clk 0:00:08]}  Ke5 {[%clk 0:00:04]} 49. a6 {[%clk 0:00:07]}  Kd6 {[%clk 0:00:04]} 50. Kf1 {[%clk 0:00:06]}  Ke5 {[%clk 0:00:02]} 51. Rb8 {[%clk 0:00:05]}  f4 {[%clk 0:00:02]} 52. gxf4+ {[%clk 0:00:04]}  Kxf4 {[%clk 0:00:03]} 53. Rb7 {[%clk 0:00:04]}  Rd6 {[%clk 0:00:02]} 54. Rxa7 {[%clk 0:00:05]}  Nf3 {[%clk 0:00:02]} 55. Rf7+ {[%clk 0:00:05]}  Kg4 {[%clk 0:00:02]} 56. Be2 {[%clk 0:00:05]} 1-0


[Site "https://www.chess.com"]

[Event "Titled Tuesday Blitz March 08 Late 2022"]
[White "Mekhitarian, Krikor Sevag"]
[Black "Chernomordik, Pavel"]
[WhiteFideId "2107660"]
[BlackFideId "2804530"]
[WhiteElo "2598"]
[BlackElo "2249"]
[Result "1-0"]
[Round "10"]
[TimeControl "180+1"]
[Date "2022.03.09"]
[WhiteClock "0:00:06"]
[BlackClock "0:00:01"]

1. e4 {[%clk 0:03:00]}  g6 {[%clk 0:03:00]} 2. d4 {[%clk 0:03:00]}  Bg7 {[%clk 0:03:01]} 3. Nc3 {[%clk 0:03:00]}  d6 {[%clk 0:03:00]} 4. Be3 {[%clk 0:02:57]}  a6 {[%clk 0:03:00]} 5. h4 {[%clk 0:02:55]}  h6 {[%clk 0:02:59]} 6. f4 {[%clk 0:02:54]}  b5 {[%clk 0:02:58]} 7. h5 {[%clk 0:02:52]}  gxh5 {[%clk 0:02:55]} 8. e5 {[%clk 0:02:45]}  Bg4 {[%clk 0:02:47]} 9. Be2 {[%clk 0:02:44]}  Qd7 {[%clk 0:02:46]} 10. Rxh5 {[%clk 0:02:28]}  Bxh5 {[%clk 0:02:44]} 11. Bxh5 {[%clk 0:02:28]}  d5 {[%clk 0:02:35]} 12. Nce2 {[%clk 0:02:14]}  e6 {[%clk 0:02:29]} 13. f5 {[%clk 0:02:14]}  exf5 {[%clk 0:02:23]} 14. Nf4 {[%clk 0:02:13]}  Kd8 {[%clk 0:02:21]} 15. Qd3 {[%clk 0:02:01]}  Nc6 {[%clk 0:02:06]} 16. c3 {[%clk 0:01:57]}  Kc8 {[%clk 0:02:03]} 17. Nge2 {[%clk 0:01:51]}  Nd8 {[%clk 0:01:56]} 18. Ng3 {[%clk 0:01:44]}  Ne7 {[%clk 0:01:55]} 19. O-O-O {[%clk 0:01:39]}  Rf8 {[%clk 0:01:48]} 20. Bf3 {[%clk 0:01:29]}  c6 {[%clk 0:01:47]} 21. Nfh5 {[%clk 0:01:28]}  Bh8 {[%clk 0:01:39]} 22. Bxh6 {[%clk 0:01:23]}  Rg8 {[%clk 0:01:39]} 23. Rf1 {[%clk 0:01:19]}  Kb7 {[%clk 0:01:16]} 24. Bd1 {[%clk 0:01:11]}  Qe6 {[%clk 0:01:05]} 25. Bd2 {[%clk 0:01:08]}  f6 {[%clk 0:01:01]} 26. Nf4 {[%clk 0:00:52]}  Qd7 {[%clk 0:00:52]} 27. exf6 {[%clk 0:00:41]}  Bxf6 {[%clk 0:00:50]} 28. Bc2 {[%clk 0:00:33]}  Ne6 {[%clk 0:00:42]} 29. Nfe2 {[%clk 0:00:33]}  Bg5 {[%clk 0:00:40]} 30. Bxg5 {[%clk 0:00:24]}  Rxg5 {[%clk 0:00:39]} 31. Qf3 {[%clk 0:00:23]}  Rf8 {[%clk 0:00:36]} 32. a4 {[%clk 0:00:22]}  f4 {[%clk 0:00:35]} 33. Nh1 {[%clk 0:00:21]}  Nf5 {[%clk 0:00:35]} 34. Bxf5 {[%clk 0:00:17]}  Rgxf5 {[%clk 0:00:34]} 35. Nf2 {[%clk 0:00:18]}  Ng5 {[%clk 0:00:33]} 36. Qd3 {[%clk 0:00:17]}  Qe6 {[%clk 0:00:32]} 37. Nd1 {[%clk 0:00:15]}  Ne4 {[%clk 0:00:32]} 38. axb5 {[%clk 0:00:12]}  axb5 {[%clk 0:00:31]} 39. Rh1 {[%clk 0:00:13]}  R5f7 {[%clk 0:00:30]} 40. Rf1 {[%clk 0:00:12]}  Qg4 {[%clk 0:00:29]} 41. Qf3 {[%clk 0:00:10]}  Rg8 {[%clk 0:00:26]} 42. Qxg4 {[%clk 0:00:05]}  Rxg4 {[%clk 0:00:26]} 43. Ne3 {[%clk 0:00:06]}  Rgg7 {[%clk 0:00:23]} 44. Rxf4 {[%clk 0:00:05]}  Rxf4 {[%clk 0:00:18]} 45. Nxf4 {[%clk 0:00:06]}  Rf7 {[%clk 0:00:17]} 46. Nd3 {[%clk 0:00:06]}  Kc7 {[%clk 0:00:14]} 47. Kc2 {[%clk 0:00:05]}  Kd6 {[%clk 0:00:14]} 48. Kb3 {[%clk 0:00:03]}  Nf2 {[%clk 0:00:13]} 49. Ne5 {[%clk 0:00:03]}  Rg7 {[%clk 0:00:13]} 50. Nf5+ {[%clk 0:00:03]}  Ke6 {[%clk 0:00:12]} 51. Nxg7+ {[%clk 0:00:04]}  Kf6 {[%clk 0:00:08]} 52. Nh5+ {[%clk 0:00:03]}  Kg5 {[%clk 0:00:08]} 53. Nxc6 {[%clk 0:00:03]}  Kxh5 {[%clk 0:00:08]} 54. Ne7 {[%clk 0:00:03]}  Nd3 {[%clk 0:00:06]} 55. Nxd5 {[%clk 0:00:03]}  Nc1+ {[%clk 0:00:07]} 56. Kc2 {[%clk 0:00:03]}  Ne2 {[%clk 0:00:07]} 57. Nc7 {[%clk 0:00:04]}  b4 {[%clk 0:00:06]} 58. Kd3 {[%clk 0:00:04]}  Nf4+ {[%clk 0:00:06]} 59. Kc4 {[%clk 0:00:04]}  bxc3 {[%clk 0:00:06]} 60. bxc3 {[%clk 0:00:05]}  Nxg2 {[%clk 0:00:06]} 61. d5 {[%clk 0:00:05]}  Ne3+ {[%clk 0:00:04]} 62. Kd4 {[%clk 0:00:05]}  Nf5+ {[%clk 0:00:04]} 63. Ke5 {[%clk 0:00:05]}  Ne7 {[%clk 0:00:03]} 64. d6 {[%clk 0:00:06]}  Nc6+ {[%clk 0:00:03]} 65. Kd5 {[%clk 0:00:06]}  Nd8 {[%clk 0:00:02]} 66. Ne6 {[%clk 0:00:06]}  Nf7 {[%clk 0:00:01]} 67. d7 {[%clk 0:00:06]}  Kg4 {[%clk 0:00:01]} 68. d8=Q {[%clk 0:00:06]} 1-0


[Site "https://www.chess.com"]

[Event "Titled Tuesday Blitz March 08 Late 2022"]
[White "Miszler, Levente"]
[Black "Baker, Chris W"]
[WhiteFideId "763276"]
[BlackFideId "401676"]
[WhiteElo "1966"]
[BlackElo "2266"]
[Result "1/2-1/2"]
[Round "10"]
[TimeControl "180+1"]
[Date "2022.03.09"]
[WhiteClock "0:01:26"]
[BlackClock "0:01:19"]

1. Nf3 {[%clk 0:03:00]}  e6 {[%clk 0:02:59]} 2. e4 {[%clk 0:02:58]}  d5 {[%clk 0:02:58]} 3. e5 {[%clk 0:02:58]}  c5 {[%clk 0:02:57]} 4. b4 {[%clk 0:02:59]}  cxb4 {[%clk 0:02:55]} 5. a3 {[%clk 0:02:55]}  Nc6 {[%clk 0:02:54]} 6. axb4 {[%clk 0:02:54]}  Bxb4 {[%clk 0:02:50]} 7. c3 {[%clk 0:02:55]}  Ba5 {[%clk 0:02:49]} 8. d4 {[%clk 0:02:54]}  Nge7 {[%clk 0:02:48]} 9. Bd3 {[%clk 0:02:51]}  a6 {[%clk 0:02:44]} 10. O-O {[%clk 0:02:50]}  b5 {[%clk 0:02:44]} 11. Qc2 {[%clk 0:02:35]}  Qc7 {[%clk 0:02:38]} 12. Nbd2 {[%clk 0:02:33]}  Bd7 {[%clk 0:02:29]} 13. Nb3 {[%clk 0:02:32]}  Bb6 {[%clk 0:02:29]} 14. Bxb5 {[%clk 0:02:27]}  Nb4 {[%clk 0:02:15]} 15. Bxd7+ {[%clk 0:02:18]}  Kxd7 {[%clk 0:02:15]} 16. Nc5+ {[%clk 0:02:10]}  Qxc5 {[%clk 0:02:10]} 17. Qa4+ {[%clk 0:02:07]}  Qb5 {[%clk 0:02:08]} 18. cxb4 {[%clk 0:02:01]}  Qxa4 {[%clk 0:02:01]} 19. Rxa4 {[%clk 0:02:02]}  Nc6 {[%clk 0:02:01]} 20. Be3 {[%clk 0:02:01]}  Rhb8 {[%clk 0:01:59]} 21. Rfa1 {[%clk 0:02:01]}  Bc7 {[%clk 0:01:55]} 22. Rxa6 {[%clk 0:01:58]}  Rxa6 {[%clk 0:01:55]} 23. Rxa6 {[%clk 0:01:59]}  Nxb4 {[%clk 0:01:49]} 24. Ra1 {[%clk 0:01:52]}  h6 {[%clk 0:01:47]} 25. Rc1 {[%clk 0:01:47]}  Bb6 {[%clk 0:01:39]} 26. g4 {[%clk 0:01:44]}  Nc6 {[%clk 0:01:38]} 27. h4 {[%clk 0:01:43]}  Ra8 {[%clk 0:01:37]} 28. Rb1 {[%clk 0:01:41]}  Kc7 {[%clk 0:01:34]} 29. g5 {[%clk 0:01:42]}  h5 {[%clk 0:01:31]} 30. Kg2 {[%clk 0:01:39]}  g6 {[%clk 0:01:29]} 31. Kf1 {[%clk 0:01:33]}  Ra4 {[%clk 0:01:29]} 32. Rd1 {[%clk 0:01:32]}  Rc4 {[%clk 0:01:27]} 33. Ke2 {[%clk 0:01:31]}  Nb4 {[%clk 0:01:26]} 34. Rc1 {[%clk 0:01:29]}  Rxc1 {[%clk 0:01:25]} 35. Bxc1 {[%clk 0:01:29]}  Kc6 {[%clk 0:01:25]} 36. Ba3 {[%clk 0:01:27]}  Nc2 {[%clk 0:01:19]} 37. Bb2 {[%clk 0:01:26]}  Nb4 {[%clk 0:01:19]} 38. Ba3 {[%clk 0:01:26]}  Nc2 {[%clk 0:01:19]} 39. Bb2 {[%clk 0:01:26]}  Nb4 {[%clk 0:01:19]} 40. Ba3 {[%clk 0:01:26]} 1/2-1/2


[Site "https://www.chess.com"]

[Event "Titled Tuesday Blitz March 08 Late 2022"]
[White "Mogranzini, Roberto"]
[Black "Ronka, Erik"]
[WhiteFideId "810894"]
[BlackFideId "505080"]
[WhiteElo "2469"]
[BlackElo "2264"]
[Result "0-1"]
[Round "10"]
[TimeControl "180+1"]
[Date "2022.03.09"]
[WhiteClock "0:00:15"]
[BlackClock "0:00:34"]

1. e4 {[%clk 0:03:00]}  Nf6 {[%clk 0:02:59]} 2. e5 {[%clk 0:03:00]}  Nd5 {[%clk 0:03:00]} 3. Bc4 {[%clk 0:03:01]}  Nb6 {[%clk 0:02:57]} 4. Bb3 {[%clk 0:03:02]}  d5 {[%clk 0:02:52]} 5. d4 {[%clk 0:03:01]}  Bf5 {[%clk 0:02:50]} 6. c3 {[%clk 0:03:00]}  e6 {[%clk 0:02:49]} 7. g4 {[%clk 0:02:51]}  Bg6 {[%clk 0:02:48]} 8. Ne2 {[%clk 0:02:48]}  c5 {[%clk 0:02:47]} 9. Nf4 {[%clk 0:02:32]}  Nc6 {[%clk 0:02:46]} 10. h4 {[%clk 0:02:27]}  cxd4 {[%clk 0:02:28]} 11. cxd4 {[%clk 0:02:27]}  Bxb1 {[%clk 0:02:28]} 12. Rxb1 {[%clk 0:02:27]}  Be7 {[%clk 0:02:19]} 13. h5 {[%clk 0:02:21]}  Rc8 {[%clk 0:02:17]} 14. Be3 {[%clk 0:02:18]}  O-O {[%clk 0:02:15]} 15. a3 {[%clk 0:02:15]}  Qd7 {[%clk 0:02:09]} 16. Bc2 {[%clk 0:02:08]}  f6 {[%clk 0:02:08]} 17. Qd3 {[%clk 0:02:00]}  f5 {[%clk 0:02:06]} 18. gxf5 {[%clk 0:01:58]}  exf5 {[%clk 0:01:57]} 19. b4 {[%clk 0:01:46]}  Nc4 {[%clk 0:01:57]} 20. Rg1 {[%clk 0:01:07]}  Nd8 {[%clk 0:01:51]} 21. Bd1 {[%clk 0:00:55]}  Ne6 {[%clk 0:01:47]} 22. Bf3 {[%clk 0:00:54]}  Nxf4 {[%clk 0:01:47]} 23. Bxf4 {[%clk 0:00:53]}  a5 {[%clk 0:01:45]} 24. Ke2 {[%clk 0:00:44]}  axb4 {[%clk 0:01:43]} 25. axb4 {[%clk 0:00:45]}  Ra8 {[%clk 0:01:36]} 26. Rgc1 {[%clk 0:00:37]}  Ra2+ {[%clk 0:01:34]} 27. Kf1 {[%clk 0:00:38]}  b5 {[%clk 0:01:32]} 28. Ra1 {[%clk 0:00:34]}  Rxa1 {[%clk 0:01:30]} 29. Rxa1 {[%clk 0:00:35]}  Bxb4 {[%clk 0:01:30]} 30. Qb3 {[%clk 0:00:31]}  Bd2 {[%clk 0:01:26]} 31. Bh2 {[%clk 0:00:25]}  f4 {[%clk 0:01:05]} 32. Kg1 {[%clk 0:00:25]}  h6 {[%clk 0:00:44]} 33. Ra6 {[%clk 0:00:22]}  Kh8 {[%clk 0:00:38]} 34. Bg2 {[%clk 0:00:19]}  f3 {[%clk 0:00:34]} 35. Bxf3 {[%clk 0:00:19]}  Qf5 {[%clk 0:00:34]} 36. Kg2 {[%clk 0:00:15]}  Ne3+ {[%clk 0:00:34]} 0-1


[Site "https://www.chess.com"]

[Event "Titled Tuesday Blitz March 08 Late 2022"]
[White "Nakamura, Hikaru"]
[Black "Holt, Conrad"]
[WhiteFideId "2016192"]
[BlackFideId "2034387"]
[WhiteElo "2850"]
[BlackElo "2586"]
[Result "0-1"]
[Round "10"]
[TimeControl "180+1"]
[Date "2022.03.08"]
[WhiteClock "0:00:07"]
[BlackClock "0:00:11"]

1. Nf3 {[%clk 0:03:00]}  d5 {[%clk 0:03:00]} 2. e3 {[%clk 0:03:01]}  Nf6 {[%clk 0:02:58]} 3. c4 {[%clk 0:03:01]}  e6 {[%clk 0:02:54]} 4. Nc3 {[%clk 0:03:01]}  Be7 {[%clk 0:02:54]} 5. d4 {[%clk 0:03:01]}  O-O {[%clk 0:02:54]} 6. Bd3 {[%clk 0:03:02]}  dxc4 {[%clk 0:02:51]} 7. Bxc4 {[%clk 0:03:03]}  a6 {[%clk 0:02:51]} 8. Qe2 {[%clk 0:03:01]}  b5 {[%clk 0:02:50]} 9. Bd3 {[%clk 0:03:01]}  Bb7 {[%clk 0:02:50]} 10. e4 {[%clk 0:03:01]}  c5 {[%clk 0:02:47]} 11. dxc5 {[%clk 0:02:57]}  Nbd7 {[%clk 0:02:45]} 12. Be3 {[%clk 0:01:49]}  b4 {[%clk 0:02:19]} 13. Na4 {[%clk 0:01:48]}  Nxe4 {[%clk 0:02:19]} 14. Rc1 {[%clk 0:01:39]}  Qa5 {[%clk 0:01:58]} 15. Bxe4 {[%clk 0:00:22]}  Bxe4 {[%clk 0:01:56]} 16. b3 {[%clk 0:00:23]}  Rac8 {[%clk 0:01:49]} 17. O-O {[%clk 0:00:23]}  Bc6 {[%clk 0:01:40]} 18. Nd4 {[%clk 0:00:19]}  Bxa4 {[%clk 0:01:38]} 19. bxa4 {[%clk 0:00:19]}  Nxc5 {[%clk 0:01:36]} 20. Rc4 {[%clk 0:00:19]}  Nxa4 {[%clk 0:01:06]} 21. Nc6 {[%clk 0:00:19]}  Qc7 {[%clk 0:01:06]} 22. Bf4 {[%clk 0:00:14]}  Bd6 {[%clk 0:01:01]} 23. Bxd6 {[%clk 0:00:07]}  Qxd6 {[%clk 0:01:01]} 24. Rd1 {[%clk 0:00:08]}  Qc7 {[%clk 0:00:56]} 25. Rdd4 {[%clk 0:00:06]}  Nb6 {[%clk 0:00:49]} 26. Rc2 {[%clk 0:00:06]}  Nd5 {[%clk 0:00:39]} 27. Rxd5 {[%clk 0:00:07]}  exd5 {[%clk 0:00:38]} 28. Qxa6 {[%clk 0:00:04]}  Rfe8 {[%clk 0:00:26]} 29. g3 {[%clk 0:00:03]}  Ra8 {[%clk 0:00:17]} 30. Qb5 {[%clk 0:00:03]}  Qd7 {[%clk 0:00:14]} 31. Qc5 {[%clk 0:00:02]}  Qh3 {[%clk 0:00:13]} 32. Rc1 {[%clk 0:00:02]}  h5 {[%clk 0:00:13]} 33. Ne7+ {[%clk 0:00:02]}  Kh8 {[%clk 0:00:13]} 34. Qxd5 {[%clk 0:00:03]}  Rad8 {[%clk 0:00:10]} 35. Qxf7 {[%clk 0:00:03]}  Qg4 {[%clk 0:00:04]} 36. Rf1 {[%clk 0:00:03]}  h4 {[%clk 0:00:04]} 37. h3 {[%clk 0:00:03]}  Qg5 {[%clk 0:00:04]} 38. Ng6+ {[%clk 0:00:03]}  Kh7 {[%clk 0:00:04]} 39. Nxh4 {[%clk 0:00:04]}  Rf8 {[%clk 0:00:04]} 40. Qe6 {[%clk 0:00:04]}  Rb8 {[%clk 0:00:04]} 41. Qe4+ {[%clk 0:00:04]}  Kg8 {[%clk 0:00:04]} 42. Ng6 {[%clk 0:00:05]}  Rfe8 {[%clk 0:00:04]} 43. Qc4+ {[%clk 0:00:06]}  Kh7 {[%clk 0:00:04]} 44. Nf4 {[%clk 0:00:06]}  Qf5 {[%clk 0:00:04]} 45. Qd4 {[%clk 0:00:06]}  Qe4 {[%clk 0:00:04]} 46. Qd7 {[%clk 0:00:06]}  Ra8 {[%clk 0:00:04]} 47. Qg4 {[%clk 0:00:06]}  Kg8 {[%clk 0:00:04]} 48. Rd1 {[%clk 0:00:05]}  Rad8 {[%clk 0:00:04]} 49. Rc1 {[%clk 0:00:05]}  Re7 {[%clk 0:00:02]} 50. h4 {[%clk 0:00:05]}  Rde8 {[%clk 0:00:02]} 51. Qg5 {[%clk 0:00:05]}  Rf7 {[%clk 0:00:03]} 52. h5 {[%clk 0:00:06]}  Qf5 {[%clk 0:00:03]} 53. Qh4 {[%clk 0:00:05]}  Ref8 {[%clk 0:00:03]} 54. Rc4 {[%clk 0:00:05]}  Re8 {[%clk 0:00:03]} 55. Rxb4 {[%clk 0:00:05]}  Qa5 {[%clk 0:00:02]} 56. Rb1 {[%clk 0:00:05]}  Qa8 {[%clk 0:00:02]} 57. Rf1 {[%clk 0:00:05]}  Qxa2 {[%clk 0:00:03]} 58. Qg4 {[%clk 0:00:05]}  Qa6 {[%clk 0:00:02]} 59. Rd1 {[%clk 0:00:06]}  Qf6 {[%clk 0:00:03]} 60. Rd5 {[%clk 0:00:06]}  Qa1+ {[%clk 0:00:02]} 61. Kg2 {[%clk 0:00:06]}  Qa8 {[%clk 0:00:03]} 62. Kh2 {[%clk 0:00:07]}  Rxf4 {[%clk 0:00:03]} 63. Qd7 {[%clk 0:00:06]}  Rf7 {[%clk 0:00:02]} 64. Qd6 {[%clk 0:00:06]}  Rxf2+ {[%clk 0:00:02]} 65. Kh3 {[%clk 0:00:06]}  Rf7 {[%clk 0:00:03]} 66. Rg5 {[%clk 0:00:06]}  Qc8+ {[%clk 0:00:03]} 67. Kh4 {[%clk 0:00:07]}  Qe6 {[%clk 0:00:04]} 68. Qd2 {[%clk 0:00:07]}  Qe4+ {[%clk 0:00:04]} 69. Rg4 {[%clk 0:00:07]}  Qe1 {[%clk 0:00:05]} 70. Qd5 {[%clk 0:00:07]}  Qe6 {[%clk 0:00:04]} 71. Qd2 {[%clk 0:00:06]}  Qf6+ {[%clk 0:00:05]} 72. Kh3 {[%clk 0:00:07]}  Qf1+ {[%clk 0:00:05]} 73. Kh4 {[%clk 0:00:07]}  Ref8 {[%clk 0:00:06]} 74. Qd5 {[%clk 0:00:07]}  Qf6+ {[%clk 0:00:05]} 75. Qg5 {[%clk 0:00:07]}  Qf5 {[%clk 0:00:06]} 76. Qe3 {[%clk 0:00:05]}  Qf6+ {[%clk 0:00:06]} 77. Qg5 {[%clk 0:00:05]}  Qxg5+ {[%clk 0:00:06]} 78. Rxg5 {[%clk 0:00:06]}  Kh7 {[%clk 0:00:07]} 79. Rc5 {[%clk 0:00:06]}  Rf1 {[%clk 0:00:07]} 80. g4 {[%clk 0:00:07]}  Rh1+ {[%clk 0:00:07]} 81. Kg5 {[%clk 0:00:07]}  Rd8 {[%clk 0:00:08]} 82. Re5 {[%clk 0:00:07]}  Rhd1 {[%clk 0:00:08]} 83. Kh4 {[%clk 0:00:07]}  R1d5 {[%clk 0:00:08]} 84. Re7 {[%clk 0:00:07]}  Kg8 {[%clk 0:00:08]} 85. Ra7 {[%clk 0:00:07]}  g5+ {[%clk 0:00:08]} 86. hxg6 {[%clk 0:00:05]}  R8d6 {[%clk 0:00:08]} 87. Ra8+ {[%clk 0:00:06]}  Kg7 {[%clk 0:00:08]} 88. Ra7+ {[%clk 0:00:06]}  Kxg6 {[%clk 0:00:09]} 89. Ra8 {[%clk 0:00:07]}  Rd1 {[%clk 0:00:09]} 90. Rg8+ {[%clk 0:00:07]}  Kh7 {[%clk 0:00:09]} 91. Ra8 {[%clk 0:00:07]}  Rh1+ {[%clk 0:00:09]} 92. Kg3 {[%clk 0:00:07]}  Rd3+ {[%clk 0:00:09]} 93. Kf4 {[%clk 0:00:08]}  Rf1+ {[%clk 0:00:09]} 94. Ke4 {[%clk 0:00:07]}  Rd7 {[%clk 0:00:09]} 95. Ra5 {[%clk 0:00:07]}  Rg7 {[%clk 0:00:09]} 96. Rh5+ {[%clk 0:00:07]}  Kg8 {[%clk 0:00:10]} 97. Rh4 {[%clk 0:00:07]}  Rg6 {[%clk 0:00:09]} 98. Ke5 {[%clk 0:00:07]}  Kg7 {[%clk 0:00:10]} 99. Ke4 {[%clk 0:00:07]}  Rg5 {[%clk 0:00:10]} 100. Ke3 {[%clk 0:00:07]}  Kg6 {[%clk 0:00:11]} 0-1


[Site "https://www.chess.com"]

[Event "Titled Tuesday Blitz March 08 Late 2022"]
[White "Osmonbekov, Talaibek"]
[Black "Silva, Miguel Antonio Neto"]
[WhiteFideId "2017253"]
[BlackFideId "1911929"]
[WhiteElo "2135"]
[BlackElo "2204"]
[Result "0-1"]
[Round "10"]
[TimeControl "180+1"]
[Date "2022.03.09"]
[WhiteClock "0:00:01"]
[BlackClock "0:00:07"]

1. Nf3 {[%clk 0:02:45]}  Nf6 {[%clk 0:02:59]} 2. d4 {[%clk 0:02:44]}  d5 {[%clk 0:02:59]} 3. Bf4 {[%clk 0:02:45]}  c5 {[%clk 0:02:58]} 4. e3 {[%clk 0:02:44]}  Nc6 {[%clk 0:02:57]} 5. Nc3 {[%clk 0:02:44]}  Bg4 {[%clk 0:02:50]} 6. Be2 {[%clk 0:02:32]}  e6 {[%clk 0:02:47]} 7. O-O {[%clk 0:02:22]}  Be7 {[%clk 0:02:44]} 8. Re1 {[%clk 0:02:03]}  O-O {[%clk 0:02:38]} 9. Ne5 {[%clk 0:02:00]}  Bxe2 {[%clk 0:02:35]} 10. Rxe2 {[%clk 0:01:58]}  cxd4 {[%clk 0:02:25]} 11. exd4 {[%clk 0:01:58]}  Bb4 {[%clk 0:02:24]} 12. Re3 {[%clk 0:01:51]}  Qb6 {[%clk 0:02:18]} 13. Ne2 {[%clk 0:01:50]}  Rac8 {[%clk 0:02:10]} 14. c3 {[%clk 0:01:25]}  Be7 {[%clk 0:02:10]} 15. Rb1 {[%clk 0:01:17]}  Nxe5 {[%clk 0:01:51]} 16. dxe5 {[%clk 0:01:10]}  Nh5 {[%clk 0:01:50]} 17. Bg3 {[%clk 0:01:07]}  Rc4 {[%clk 0:01:39]} 18. Nd4 {[%clk 0:01:02]}  Bc5 {[%clk 0:01:35]} 19. Qxh5 {[%clk 0:00:58]}  Bxd4 {[%clk 0:01:31]} 20. cxd4 {[%clk 0:00:58]}  Qxd4 {[%clk 0:01:30]} 21. Qe2 {[%clk 0:00:34]}  Rfc8 {[%clk 0:01:25]} 22. h3 {[%clk 0:00:33]}  Rc2 {[%clk 0:01:12]} 23. Qb5 {[%clk 0:00:28]}  R2c7 {[%clk 0:00:55]} 24. Qd3 {[%clk 0:00:22]}  Qa4 {[%clk 0:00:49]} 25. Qb3 {[%clk 0:00:19]}  Qa6 {[%clk 0:00:43]} 26. Rc3 {[%clk 0:00:18]}  b6 {[%clk 0:00:35]} 27. Rbc1 {[%clk 0:00:17]}  Rxc3 {[%clk 0:00:32]} 28. Rxc3 {[%clk 0:00:17]}  Rc4 {[%clk 0:00:31]} 29. Rxc4 {[%clk 0:00:16]}  dxc4 {[%clk 0:00:32]} 30. Qd1 {[%clk 0:00:11]}  h6 {[%clk 0:00:29]} 31. a3 {[%clk 0:00:11]}  Qc8 {[%clk 0:00:27]} 32. Bf4 {[%clk 0:00:09]}  Qc6 {[%clk 0:00:25]} 33. Qd4 {[%clk 0:00:07]}  a5 {[%clk 0:00:25]} 34. Be3 {[%clk 0:00:07]}  b5 {[%clk 0:00:25]} 35. Bd2 {[%clk 0:00:07]}  a4 {[%clk 0:00:22]} 36. f3 {[%clk 0:00:06]}  h5 {[%clk 0:00:19]} 37. Kf2 {[%clk 0:00:06]}  g6 {[%clk 0:00:19]} 38. Qd8+ {[%clk 0:00:05]}  Kh7 {[%clk 0:00:19]} 39. Qe7 {[%clk 0:00:04]}  Kg8 {[%clk 0:00:17]} 40. Bg5 {[%clk 0:00:03]}  Qd5 {[%clk 0:00:16]} 41. Bf6 {[%clk 0:00:01]}  Qd2+ {[%clk 0:00:14]} 42. Kg3 {[%clk 0:00:01]}  h4+ {[%clk 0:00:07]} 0-1


[Site "https://www.chess.com"]